[Event "Early-Titled-Tuesday-Blitz-February-20-2024"]
[Site "Chess.com"]
[Date "2024.02.20"]
[Round "7"]
[White "FARIZA2018"]
[Black "K_A_S_T_O_R"]
[Result "1-0"]
[WhiteElo "2603"]
[BlackElo "2840"]
[TimeControl "180+1"]
[EndTime "9:20:46 PST"]
[Termination "FARIZA2018 won by checkmate"]

1. e4 {[%clk 0:03:00.9]} 1... c5 {[%clk 0:02:59.6]} 2. Nf3 {[%clk 0:03:01]} 2...
d6 {[%clk 0:02:59.8]} 3. d4 {[%clk 0:03:01.4]} 3... cxd4 {[%clk 0:03:00]} 4.
Nxd4 {[%clk 0:03:02]} 4... Nf6 {[%clk 0:03:00.6]} 5. Nc3 {[%clk 0:03:02.2]} 5...
a6 {[%clk 0:03:01.2]} 6. f4 {[%clk 0:03:01.5]} 6... e6 {[%clk 0:02:57.5]} 7. Be2
{[%clk 0:02:58.3]} 7... Qb6 {[%clk 0:02:56.4]} 8. Rb1 {[%clk 0:02:27.8]} 8...
Nc6 {[%clk 0:02:55]} 9. Be3 {[%clk 0:02:27.1]} 9... Qc7 {[%clk 0:02:48.3]} 10.
O-O {[%clk 0:02:26.6]} 10... Be7 {[%clk 0:02:48.2]} 11. Qe1 {[%clk 0:02:20.3]}
11... O-O {[%clk 0:02:44]} 12. Qg3 {[%clk 0:02:20.2]} 12... Bd7 {[%clk
0:02:35.8]} 13. Kh1 {[%clk 0:02:16.1]} 13... b5 {[%clk 0:02:30.3]} 14. a3 {[%clk
0:02:13.7]} 14... Nxd4 {[%clk 0:02:25]} 15. Bxd4 {[%clk 0:02:13.7]} 15... Bc6
{[%clk 0:02:25.3]} 16. e5 {[%clk 0:02:05.7]} 16... dxe5 {[%clk 0:02:24.5]} 17.
Bxe5 {[%clk 0:02:05.7]} 17... Qb7 {[%clk 0:02:24.7]} 18. f5 {[%clk 0:01:59.5]}
18... Rae8 {[%clk 0:02:07.2]} 19. Bd3 {[%clk 0:01:53.3]} 19... Kh8 {[%clk
0:01:40]} 20. fxe6 {[%clk 0:01:29.2]} 20... fxe6 {[%clk 0:01:39.9]} 21. Qh3
{[%clk 0:01:25.6]} 21... h6 {[%clk 0:01:34.8]} 22. Rbe1 {[%clk 0:01:25.5]} 22...
Bd8 {[%clk 0:01:27.2]} 23. Ne2 {[%clk 0:01:19]} 23... Kg8 {[%clk 0:01:10.4]} 24.
Nf4 {[%clk 0:01:13.8]} 24... Nd5 {[%clk 0:01:00]} 25. Qg3 {[%clk 0:00:58.1]}
25... Nxf4 {[%clk 0:00:58.4]} 26. Bxf4 {[%clk 0:00:54.6]} 26... Rf6 {[%clk
0:00:54.5]} 27. Be5 {[%clk 0:00:53.4]} 27... Rxf1+ {[%clk 0:00:51]} 28. Rxf1
{[%clk 0:00:53.6]} 28... Qe7 {[%clk 0:00:49.5]} 29. Qg6 {[%clk 0:00:50.1]} 29...
Bxg2+ {[%clk 0:00:46.2]} 30. Qxg2 {[%clk 0:00:40.8]} 30... Rf8 {[%clk 0:00:46]}
31. Rxf8+ {[%clk 0:00:40.3]} 31... Qxf8 {[%clk 0:00:46]} 32. Qe4 {[%clk
0:00:36.6]} 32... Bf6 {[%clk 0:00:40.9]} 33. Qh7+ {[%clk 0:00:33.5]} 33... Kf7
{[%clk 0:00:41.4]} 34. Qg6+ {[%clk 0:00:33.6]} 34... Ke7 {[%clk 0:00:41.7]} 35.
Bxf6+ {[%clk 0:00:33]} 35... gxf6 {[%clk 0:00:42.2]} 36. Qh7+ {[%clk 0:00:32.4]}
36... Kd6 {[%clk 0:00:42.6]} 37. Qb7 {[%clk 0:00:31.1]} 37... Ke5 {[%clk
0:00:34.3]} 38. Qc7+ {[%clk 0:00:28]} 38... Kd4 {[%clk 0:00:33.3]} 39. Qc3+
{[%clk 0:00:22]} 39... Kd5 {[%clk 0:00:33.4]} 40. Be2 {[%clk 0:00:19.8]} 40...
e5 {[%clk 0:00:28.7]} 41. Bf3+ {[%clk 0:00:19]} 41... Ke6 {[%clk 0:00:29.2]} 42.
Qc6+ {[%clk 0:00:19.5]} 42... Kf5 {[%clk 0:00:29.3]} 43. Qd7+ {[%clk 0:00:17.4]}
43... Kf4 {[%clk 0:00:21.5]} 44. Qg4+ {[%clk 0:00:16.8]} 44... Ke3 {[%clk
0:00:21.6]} 45. Qe4+ {[%clk 0:00:15.6]} 45... Kd2 {[%clk 0:00:22]} 46. Qd3+
{[%clk 0:00:12.1]} 46... Kc1 {[%clk 0:00:22.3]} 47. c4 {[%clk 0:00:11]} 47...
bxc4 {[%clk 0:00:15.6]} 48. Qc3+ {[%clk 0:00:11.2]} 48... Kb1 {[%clk 0:00:15.5]}
49. Be4+ {[%clk 0:00:11.6]} 49... Ka1 {[%clk 0:00:15.8]} 50. b4+ {[%clk
0:00:05.9]} 50... Ka2 {[%clk 0:00:15.2]} 51. Bd5 {[%clk 0:00:05.8]} 51... Qd8
{[%clk 0:00:10.7]} 52. Qc2+ {[%clk 0:00:04.6]} 52... Ka1 {[%clk 0:00:10.5]} 53.
Qc1+ {[%clk 0:00:04.9]} 53... Ka2 {[%clk 0:00:10.9]} 54. Bxc4# {[%clk
0:00:05.5]} 1-0

[Event "Early-Titled-Tuesday-Blitz-February-20-2024"]
[Site "Chess.com"]
[Date "2024.02.20"]
[Round "7"]
[White "ACollins05"]
[Black "Lennis93"]
[Result "1/2-1/2"]
[WhiteElo "2574"]
[BlackElo "2694"]
[TimeControl "180+1"]
[EndTime "9:20:52 PST"]
[Termination "Game drawn - insufficient material"]

1. d4 {[%clk 0:02:57.7]} 1... d5 {[%clk 0:02:56.8]} 2. c4 {[%clk 0:02:57.5]}
2... c6 {[%clk 0:02:56.5]} 3. Nf3 {[%clk 0:02:57.3]} 3... Nf6 {[%clk 0:02:56.6]}
4. Nc3 {[%clk 0:02:55.2]} 4... dxc4 {[%clk 0:02:55.1]} 5. a4 {[%clk 0:02:52.4]}
5... Bf5 {[%clk 0:02:54.1]} 6. e3 {[%clk 0:02:50.2]} 6... e6 {[%clk 0:02:54.4]}
7. Bxc4 {[%clk 0:02:49.8]} 7... Bb4 {[%clk 0:02:53.6]} 8. O-O {[%clk 0:02:49.4]}
8... O-O {[%clk 0:02:52.1]} 9. Qe2 {[%clk 0:02:48.9]} 9... Bg6 {[%clk 0:02:49]}
10. Bd2 {[%clk 0:02:48.1]} 10... a5 {[%clk 0:02:48.1]} 11. Rfe1 {[%clk
0:02:47.2]} 11... Nbd7 {[%clk 0:02:47.2]} 12. Rad1 {[%clk 0:02:46.1]} 12... Qe7
{[%clk 0:02:46.6]} 13. e4 {[%clk 0:02:45.8]} 13... Bxc3 {[%clk 0:02:44.2]} 14.
Bxc3 {[%clk 0:02:42.8]} 14... Nxe4 {[%clk 0:02:43.1]} 15. h4 {[%clk 0:02:29.6]}
15... h6 {[%clk 0:02:31.5]} 16. Bd3 {[%clk 0:02:25.4]} 16... Nxc3 {[%clk
0:02:29.9]} 17. bxc3 {[%clk 0:02:26.3]} 17... Bxd3 {[%clk 0:02:27.1]} 18. Rxd3
{[%clk 0:02:27.2]} 18... Qa3 {[%clk 0:02:25.6]} 19. g4 {[%clk 0:02:24.8]} 19...
Qxa4 {[%clk 0:02:19.6]} 20. g5 {[%clk 0:02:24.5]} 20... hxg5 {[%clk 0:02:13.5]}
21. Nxg5 {[%clk 0:02:20.9]} 21... Qb5 {[%clk 0:02:13]} 22. Kh2 {[%clk 0:01:54]}
22... Nf6 {[%clk 0:02:11]} 23. Rg1 {[%clk 0:01:52.1]} 23... a4 {[%clk
0:02:09.4]} 24. Qf3 {[%clk 0:01:49]} 24... Qf5 {[%clk 0:02:07.5]} 25. Qg3 {[%clk
0:01:44.1]} 25... Nh5 {[%clk 0:02:07.2]} 26. Qe3 {[%clk 0:01:33.7]} 26... Qf4+
{[%clk 0:02:05.8]} 27. Kh3 {[%clk 0:01:16.9]} 27... a3 {[%clk 0:01:52.7]} 28.
Rd2 {[%clk 0:01:14.7]} 28... Qxe3+ {[%clk 0:01:49.6]} 29. fxe3 {[%clk
0:01:15.6]} 29... b5 {[%clk 0:01:44.9]} 30. Ne4 {[%clk 0:01:12.6]} 30... g6
{[%clk 0:01:28.6]} 31. Ra1 {[%clk 0:00:54.3]} 31... Ra7 {[%clk 0:01:28.2]} 32.
Nf2 {[%clk 0:00:39.4]} 32... Nf6 {[%clk 0:01:27.3]} 33. Rda2 {[%clk 0:00:34.1]}
33... Rfa8 {[%clk 0:01:22.2]} 34. e4 {[%clk 0:00:34.1]} 34... e5 {[%clk
0:01:22.3]} 35. dxe5 {[%clk 0:00:33.5]} 35... Nd7 {[%clk 0:01:22.3]} 36. Nd3
{[%clk 0:00:34.1]} 36... c5 {[%clk 0:01:21.5]} 37. Kg3 {[%clk 0:00:27.4]} 37...
Ra4 {[%clk 0:01:19.1]} 38. Kf4 {[%clk 0:00:20.3]} 38... Kg7 {[%clk 0:01:05.9]}
39. Rb1 {[%clk 0:00:17.9]} 39... R8a5 {[%clk 0:00:35.4]} 40. Rba1 {[%clk
0:00:16.6]} 40... Kf8 {[%clk 0:00:25.3]} 41. Rb1 {[%clk 0:00:13.5]} 41... Ke7
{[%clk 0:00:25.3]} 42. Rba1 {[%clk 0:00:12]} 42... Kd8 {[%clk 0:00:24.1]} 43.
Rf1 {[%clk 0:00:11.2]} 43... Ke7 {[%clk 0:00:18.2]} 44. Rb1 {[%clk 0:00:10.5]}
44... Rc4 {[%clk 0:00:14.9]} 45. Rb3 {[%clk 0:00:08.9]} 45... Nf8 {[%clk
0:00:10]} 46. Rbxa3 {[%clk 0:00:06.5]} 46... Ne6+ {[%clk 0:00:10.9]} 47. Ke3
{[%clk 0:00:06]} 47... Rca4 {[%clk 0:00:11.3]} 48. Rxa4 {[%clk 0:00:05.9]} 48...
bxa4 {[%clk 0:00:10.9]} 49. Nb2 {[%clk 0:00:05.8]} 49... a3 {[%clk 0:00:09.4]}
50. Nc4 {[%clk 0:00:05.9]} 50... Ra4 {[%clk 0:00:10]} 51. Nxa3 {[%clk
0:00:06.1]} 51... Nc7 {[%clk 0:00:08.9]} 52. Ra1 {[%clk 0:00:06.7]} 52... Nb5
{[%clk 0:00:08.6]} 53. Nc2 {[%clk 0:00:07.3]} 53... Rxa1 {[%clk 0:00:08.8]} 54.
Nxa1 {[%clk 0:00:08.2]} 54... Nxc3 {[%clk 0:00:09.2]} 55. Kd3 {[%clk 0:00:08]}
55... Na4 {[%clk 0:00:06.8]} 56. Kc4 {[%clk 0:00:08.4]} 56... Ke6 {[%clk
0:00:06.9]} 57. Kb5 {[%clk 0:00:06.6]} 57... Nc3+ {[%clk 0:00:06.1]} 58. Kxc5
{[%clk 0:00:07]} 58... Nxe4+ {[%clk 0:00:07]} 59. Kd4 {[%clk 0:00:07.4]} 59...
Ng3 {[%clk 0:00:07.1]} 60. Nc2 {[%clk 0:00:07.5]} 60... Nf5+ {[%clk 0:00:08]}
61. Ke4 {[%clk 0:00:07.3]} 61... Nxh4 {[%clk 0:00:08.9]} 62. Nd4+ {[%clk
0:00:07.3]} 62... Ke7 {[%clk 0:00:09.5]} 63. Nc6+ {[%clk 0:00:07.6]} 63... Kd7
{[%clk 0:00:09.1]} 64. Nd4 {[%clk 0:00:08.2]} 64... g5 {[%clk 0:00:08.2]} 65.
Nf5 {[%clk 0:00:06.6]} 65... Nxf5 {[%clk 0:00:07.1]} 66. Kxf5 {[%clk 0:00:07.5]}
66... Ke7 {[%clk 0:00:06.3]} 67. Kxg5 {[%clk 0:00:07.8]} 67... Ke6 {[%clk
0:00:07.2]} 68. Kf4 {[%clk 0:00:08.4]} 68... f6 {[%clk 0:00:06.4]} 69. exf6
{[%clk 0:00:08.8]} 69... Kxf6 {[%clk 0:00:07.3]} 1/2-1/2

[Event "Early-Titled-Tuesday-Blitz-February-20-2024"]
[Site "Chess.com"]
[Date "2024.02.20"]
[Round "7"]
[White "FREDERICKtheMATE"]
[Black "NovoselovRoman"]
[Result "1/2-1/2"]
[WhiteElo "2681"]
[BlackElo "2550"]
[TimeControl "180+1"]
[EndTime "9:20:54 PST"]
[Termination "Game drawn - insufficient material"]

1. d4 {[%clk 0:03:00.9]} 1... Nf6 {[%clk 0:02:58.4]} 2. c4 {[%clk 0:03:01.4]}
2... e5 {[%clk 0:02:58.9]} 3. dxe5 {[%clk 0:03:00.9]} 3... Ng4 {[%clk
0:02:59.6]} 4. e4 {[%clk 0:03:00.9]} 4... Nxe5 {[%clk 0:03:00]} 5. f4 {[%clk
0:03:01.4]} 5... Nec6 {[%clk 0:03:00.4]} 6. Nc3 {[%clk 0:03:01.4]} 6... Bc5
{[%clk 0:02:59.1]} 7. Nge2 {[%clk 0:03:00.8]} 7... d6 {[%clk 0:02:59.5]} 8. g3
{[%clk 0:03:01]} 8... O-O {[%clk 0:02:59.6]} 9. Bg2 {[%clk 0:03:01.5]} 9... a6
{[%clk 0:02:56.5]} 10. a3 {[%clk 0:03:01.3]} 10... Bg4 {[%clk 0:02:55.7]} 11.
Qd3 {[%clk 0:03:00.5]} 11... Nd7 {[%clk 0:02:48.9]} 12. b4 {[%clk 0:02:58.5]}
12... Ba7 {[%clk 0:02:46.5]} 13. h3 {[%clk 0:02:54.5]} 13... Bxe2 {[%clk
0:02:46.7]} 14. Nxe2 {[%clk 0:02:55.4]} 14... a5 {[%clk 0:02:47.4]} 15. Rb1
{[%clk 0:02:49.3]} 15... axb4 {[%clk 0:02:44.5]} 16. axb4 {[%clk 0:02:50.2]}
16... Re8 {[%clk 0:02:45]} 17. h4 {[%clk 0:02:32.8]} 17... Nf6 {[%clk
0:02:41.4]} 18. b5 {[%clk 0:02:21.7]} 18... Nb8 {[%clk 0:02:31.6]} 19. Bf3
{[%clk 0:02:18.3]} 19... Nbd7 {[%clk 0:02:30.5]} 20. Ba3 {[%clk 0:02:12.5]}
20... Bc5 {[%clk 0:02:26.1]} 21. Bb2 {[%clk 0:02:11.3]} 21... Qe7 {[%clk
0:02:25.7]} 22. Nc3 {[%clk 0:02:06.2]} 22... Bb4 {[%clk 0:02:15.2]} 23. O-O
{[%clk 0:02:01.6]} 23... Nc5 {[%clk 0:02:11.5]} 24. Qd4 {[%clk 0:02:01]} 24...
Bxc3 {[%clk 0:01:55.4]} 25. Bxc3 {[%clk 0:02:01.9]} 25... Ncxe4 {[%clk
0:01:55.9]} 26. Rbe1 {[%clk 0:01:56.7]} 26... d5 {[%clk 0:01:46.3]} 27. cxd5
{[%clk 0:01:40.8]} 27... Qc5 {[%clk 0:01:42.4]} 28. Qxc5 {[%clk 0:01:30.6]}
28... Nxc5 {[%clk 0:01:41.5]} 29. Be5 {[%clk 0:01:22.6]} 29... Nd3 {[%clk
0:01:22]} 30. Re3 {[%clk 0:01:21.6]} 30... Nxe5 {[%clk 0:01:22.3]} 31. fxe5
{[%clk 0:01:22.5]} 31... Nd7 {[%clk 0:01:22.2]} 32. e6 {[%clk 0:01:19.3]} 32...
Nf6 {[%clk 0:01:20.2]} 33. g4 {[%clk 0:01:15.5]} 33... Re7 {[%clk 0:01:03.9]}
34. g5 {[%clk 0:00:59.3]} 34... Ne8 {[%clk 0:01:03]} 35. Bh5 {[%clk 0:00:50.4]}
35... fxe6 {[%clk 0:00:45.1]} 36. Rxe6 {[%clk 0:00:48]} 36... Rxe6 {[%clk
0:00:43]} 37. dxe6 {[%clk 0:00:48.9]} 37... g6 {[%clk 0:00:43.6]} 38. Bf3 {[%clk
0:00:48.5]} 38... Nd6 {[%clk 0:00:43.2]} 39. Bd5 {[%clk 0:00:47.5]} 39... Kg7
{[%clk 0:00:34.2]} 40. Kg2 {[%clk 0:00:23.9]} 40... Re8 {[%clk 0:00:26.9]} 41.
Kg3 {[%clk 0:00:20.4]} 41... Re7 {[%clk 0:00:27.4]} 42. Kg4 {[%clk 0:00:20.5]}
42... Nxb5 {[%clk 0:00:27.9]} 43. Bxb7 {[%clk 0:00:16.6]} 43... Rxe6 {[%clk
0:00:25.5]} 44. Bd5 {[%clk 0:00:16.7]} 44... Re7 {[%clk 0:00:25.3]} 45. h5
{[%clk 0:00:15.3]} 45... gxh5+ {[%clk 0:00:25.3]} 46. Kxh5 {[%clk 0:00:16.2]}
46... Nd6 {[%clk 0:00:25.7]} 47. Rc1 {[%clk 0:00:14.6]} 47... Nf5 {[%clk
0:00:23]} 48. Bf3 {[%clk 0:00:12.6]} 48... Nd4 {[%clk 0:00:22.5]} 49. Bg4 {[%clk
0:00:12.2]} 49... c6 {[%clk 0:00:18.8]} 50. Rc4 {[%clk 0:00:11]} 50... Re4
{[%clk 0:00:19]} 51. Bd7 {[%clk 0:00:10.1]} 51... c5 {[%clk 0:00:12.2]} 52. Rxc5
{[%clk 0:00:09.6]} 52... Nf3 {[%clk 0:00:12.8]} 53. Bg4 {[%clk 0:00:08.1]} 53...
Ne5 {[%clk 0:00:12.6]} 54. Rc7+ {[%clk 0:00:08.2]} 54... Kg8 {[%clk 0:00:12.3]}
55. Be6+ {[%clk 0:00:07.9]} 55... Kf8 {[%clk 0:00:12.7]} 56. Rxh7 {[%clk
0:00:05.5]} 56... Re1 {[%clk 0:00:12.9]} 57. g6 {[%clk 0:00:04.9]} 57... Rh1+
{[%clk 0:00:11.2]} 58. Kg5 {[%clk 0:00:05]} 58... Rxh7 {[%clk 0:00:10.7]} 59.
gxh7 {[%clk 0:00:04]} 59... Kg7 {[%clk 0:00:11.4]} 60. Bf5 {[%clk 0:00:04.9]}
60... Nf7+ {[%clk 0:00:11.6]} 61. Kf4 {[%clk 0:00:05.8]} 61... Nh8 {[%clk
0:00:12]} 62. Ke3 {[%clk 0:00:06.7]} 62... Nf7 {[%clk 0:00:12.3]} 63. Kd2 {[%clk
0:00:07.6]} 63... Nh8 {[%clk 0:00:12.6]} 64. Kc3 {[%clk 0:00:08.5]} 64... Nf7
{[%clk 0:00:13.5]} 65. Kb3 {[%clk 0:00:09.4]} 65... Nh8 {[%clk 0:00:14.2]} 66.
Ka3 {[%clk 0:00:10.3]} 66... Nf7 {[%clk 0:00:14.9]} 67. Ka4 {[%clk 0:00:11.2]}
67... Nd6 {[%clk 0:00:15.6]} 68. Bd3 {[%clk 0:00:12.1]} 68... Nf7 {[%clk
0:00:15.9]} 69. Bc2 {[%clk 0:00:13]} 69... Ne5 {[%clk 0:00:16.5]} 70. Bb1 {[%clk
0:00:13.9]} 70... Nf7 {[%clk 0:00:17.2]} 71. Be4 {[%clk 0:00:14.8]} 71... Ng5
{[%clk 0:00:18]} 72. Bf5 {[%clk 0:00:15.7]} 72... Nxh7 {[%clk 0:00:18.7]}
1/2-1/2

[Event "Early-Titled-Tuesday-Blitz-February-20-2024"]
[Site "Chess.com"]
[Date "2024.02.20"]
[Round "7"]
[White "malakismayil"]
[Black "WiktoriaPOL"]
[Result "1-0"]
[WhiteElo "2529"]
[BlackElo "2284"]
[TimeControl "180+1"]
[EndTime "9:20:54 PST"]
[Termination "malakismayil won by checkmate"]

1. e4 {[%clk 0:03:00.9]} 1... c5 {[%clk 0:02:58.3]} 2. Nf3 {[%clk 0:03:01.4]}
2... d6 {[%clk 0:02:57.2]} 3. Bb5+ {[%clk 0:03:01.7]} 3... Nd7 {[%clk
0:02:56.5]} 4. O-O {[%clk 0:03:01.2]} 4... Nf6 {[%clk 0:02:55.9]} 5. Re1 {[%clk
0:03:01.5]} 5... a6 {[%clk 0:02:54.7]} 6. Bf1 {[%clk 0:03:01.5]} 6... b5 {[%clk
0:02:53.9]} 7. d4 {[%clk 0:02:55.1]} 7... cxd4 {[%clk 0:02:53.5]} 8. Nxd4 {[%clk
0:02:56]} 8... Bb7 {[%clk 0:02:53.9]} 9. f3 {[%clk 0:02:55.1]} 9... g6 {[%clk
0:02:50.9]} 10. c4 {[%clk 0:02:52.7]} 10... bxc4 {[%clk 0:02:39.3]} 11. Bxc4
{[%clk 0:02:53.6]} 11... Bg7 {[%clk 0:02:38.9]} 12. Nc3 {[%clk 0:02:52]} 12...
O-O {[%clk 0:02:38.6]} 13. Be3 {[%clk 0:02:48.5]} 13... Nb6 {[%clk 0:02:38.4]}
14. Bb3 {[%clk 0:02:42.4]} 14... e6 {[%clk 0:02:31.1]} 15. Qd2 {[%clk
0:02:40.7]} 15... d5 {[%clk 0:02:30.3]} 16. e5 {[%clk 0:02:35.5]} 16... Nfd7
{[%clk 0:02:29.7]} 17. f4 {[%clk 0:02:34.2]} 17... Nc5 {[%clk 0:02:27.8]} 18.
Qf2 {[%clk 0:02:18.8]} 18... Nd3 {[%clk 0:02:25.2]} 19. Qe2 {[%clk 0:02:17.1]}
19... Nxe1 {[%clk 0:02:24.9]} 20. Rxe1 {[%clk 0:02:18]} 20... Nc4 {[%clk
0:02:23.7]} 21. Bf2 {[%clk 0:02:11.1]} 21... Rc8 {[%clk 0:02:17.7]} 22. h4
{[%clk 0:02:09.3]} 22... h5 {[%clk 0:02:15.8]} 23. Nf3 {[%clk 0:02:01.5]} 23...
Qc7 {[%clk 0:02:10]} 24. Bd4 {[%clk 0:01:58.9]} 24... Rfd8 {[%clk 0:02:06.6]}
25. Ng5 {[%clk 0:01:55.5]} 25... Bf8 {[%clk 0:02:05.8]} 26. Na4 {[%clk
0:01:29.8]} 26... Bc6 {[%clk 0:00:33.7]} 27. Nc3 {[%clk 0:01:15.4]} 27... Bb5
{[%clk 0:00:29.1]} 28. Qf2 {[%clk 0:01:09.9]} 28... Be8 {[%clk 0:00:02]} 29. Nf3
{[%clk 0:01:07.6]} 29... Bc5 {[%clk 0:00:02.6]} 30. Nb1 {[%clk 0:00:50.4]} 30...
Bxd4 {[%clk 0:00:02.9]} 31. Nxd4 {[%clk 0:00:51.2]} 31... Qc5 {[%clk 0:00:02.7]}
32. Rd1 {[%clk 0:00:39.6]} 32... a5 {[%clk 0:00:03.1]} 33. f5 {[%clk 0:00:38.7]}
33... a4 {[%clk 0:00:03.3]} 34. Bc2 {[%clk 0:00:32.9]} 34... exf5 {[%clk
0:00:03.1]} 35. e6 {[%clk 0:00:30.8]} 35... fxe6 {[%clk 0:00:03.1]} 36. Qg3
{[%clk 0:00:31.1]} 36... Qe7 {[%clk 0:00:02.9]} 37. Re1 {[%clk 0:00:26.8]} 37...
Bf7 {[%clk 0:00:03.5]} 38. Nxf5 {[%clk 0:00:11.2]} 38... Qf6 {[%clk 0:00:03.7]}
39. Nh6+ {[%clk 0:00:11.4]} 39... Kg7 {[%clk 0:00:03.9]} 40. Nxf7 {[%clk
0:00:09.9]} 40... Qxf7 {[%clk 0:00:04.2]} 41. Rf1 {[%clk 0:00:10.2]} 41... Qa7+
{[%clk 0:00:04.1]} 42. Kh1 {[%clk 0:00:10.2]} 42... Rf8 {[%clk 0:00:04.7]} 43.
Qxg6+ {[%clk 0:00:10]} 43... Kh8 {[%clk 0:00:03.8]} 44. Qxh5+ {[%clk 0:00:10.4]}
44... Kg8 {[%clk 0:00:03.8]} 45. Qg6+ {[%clk 0:00:09.9]} 45... Qg7 {[%clk
0:00:03.3]} 46. Qxe6+ {[%clk 0:00:10.2]} 46... Kh8 {[%clk 0:00:03.4]} 47. Rg1
{[%clk 0:00:05.3]} 47... Rf4 {[%clk 0:00:02.3]} 48. g3 {[%clk 0:00:03.8]} 48...
Rff8 {[%clk 0:00:01.9]} 49. Qxd5 {[%clk 0:00:03.8]} 49... Rce8 {[%clk
0:00:02.4]} 50. Qxc4 {[%clk 0:00:03.3]} 50... Re5 {[%clk 0:00:02.2]} 51. Qd3
{[%clk 0:00:02.9]} 51... Rfe8 {[%clk 0:00:02.8]} 52. Nd2 {[%clk 0:00:03]} 52...
Re3 {[%clk 0:00:03]} 53. Qf5 {[%clk 0:00:02.8]} 53... Rxg3 {[%clk 0:00:02.8]}
54. Rxg3 {[%clk 0:00:02.4]} 54... Re1+ {[%clk 0:00:03.3]} 55. Kh2 {[%clk
0:00:02.5]} 55... Qe7 {[%clk 0:00:03.5]} 56. Qh5+ {[%clk 0:00:02.3]} 56... Qh7
{[%clk 0:00:02.9]} 57. Qxh7# {[%clk 0:00:03.1]} 1-0

[Event "Early-Titled-Tuesday-Blitz-February-20-2024"]
[Site "Chess.com"]
[Date "2024.02.20"]
[Round "7"]
[White "ajeale2"]
[Black "Skatchkov_V"]
[Result "0-1"]
[WhiteElo "2494"]
[BlackElo "2615"]
[TimeControl "180+1"]
[EndTime "9:20:55 PST"]
[Termination "Skatchkov_V won on time"]

1. d4 {[%clk 0:03:00.9]} 1... Nf6 {[%clk 0:02:59.8]} 2. Bf4 {[%clk 0:02:57.5]}
2... d5 {[%clk 0:02:59.3]} 3. e3 {[%clk 0:02:57.6]} 3... c5 {[%clk 0:02:59.8]}
4. c3 {[%clk 0:02:57.4]} 4... Nc6 {[%clk 0:03:00.3]} 5. Nd2 {[%clk 0:02:57.9]}
5... e6 {[%clk 0:03:00.7]} 6. Ngf3 {[%clk 0:02:56.6]} 6... Nh5 {[%clk
0:03:01.2]} 7. Bg5 {[%clk 0:02:56.3]} 7... f6 {[%clk 0:03:01.7]} 8. Bh4 {[%clk
0:02:55.7]} 8... g6 {[%clk 0:03:02.4]} 9. Be2 {[%clk 0:02:53.4]} 9... cxd4
{[%clk 0:03:02.7]} 10. cxd4 {[%clk 0:02:51.3]} 10... Bd6 {[%clk 0:03:02.4]} 11.
O-O {[%clk 0:02:49.7]} 11... O-O {[%clk 0:03:03]} 12. a3 {[%clk 0:02:46.1]}
12... Bd7 {[%clk 0:03:00.5]} 13. b4 {[%clk 0:02:45.6]} 13... a6 {[%clk
0:03:01.2]} 14. Ne1 {[%clk 0:02:40.6]} 14... Ng7 {[%clk 0:03:00.4]} 15. Nd3
{[%clk 0:02:39.2]} 15... Nf5 {[%clk 0:02:59.4]} 16. Bg3 {[%clk 0:02:38.9]} 16...
Nxg3 {[%clk 0:02:59.9]} 17. fxg3 {[%clk 0:02:28.1]} 17... Qe7 {[%clk 0:02:58]}
18. Bf3 {[%clk 0:02:19.6]} 18... Kg7 {[%clk 0:02:55.7]} 19. Qe2 {[%clk
0:02:07.8]} 19... Rac8 {[%clk 0:02:50.2]} 20. Nb3 {[%clk 0:02:07.5]} 20... b6
{[%clk 0:02:48]} 21. e4 {[%clk 0:02:07.3]} 21... dxe4 {[%clk 0:02:37.9]} 22.
Bxe4 {[%clk 0:02:06.2]} 22... e5 {[%clk 0:02:22.7]} 23. dxe5 {[%clk 0:01:10.7]}
23... Nxe5 {[%clk 0:02:22.1]} 24. Rae1 {[%clk 0:01:03.6]} 24... Bb5 {[%clk
0:02:19.9]} 25. Nd4 {[%clk 0:00:58]} 25... Bc4 {[%clk 0:01:56.6]} 26. Qd2 {[%clk
0:00:38.6]} 26... Rfd8 {[%clk 0:01:51.3]} 27. Nf4 {[%clk 0:00:35.1]} 27... Bxf1
{[%clk 0:01:24]} 28. Nfe6+ {[%clk 0:00:33]} 28... Kh8 {[%clk 0:01:23.3]} 29.
Nxd8 {[%clk 0:00:30.5]} 29... Rxd8 {[%clk 0:01:04.3]} 30. Kxf1 {[%clk
0:00:30.1]} 30... Bc5 {[%clk 0:00:20.5]} 31. bxc5 {[%clk 0:00:29.3]} 31... bxc5
{[%clk 0:00:21.4]} 32. Bxg6 {[%clk 0:00:12.6]} 32... Rxd4 {[%clk 0:00:14]} 33.
Qh6 {[%clk 0:00:12.7]} 33... Qg7 {[%clk 0:00:13.2]} 34. Qxg7+ {[%clk 0:00:12.5]}
34... Kxg7 {[%clk 0:00:14.1]} 35. Bf5 {[%clk 0:00:10.6]} 35... c4 {[%clk
0:00:14]} 36. Ke2 {[%clk 0:00:07.7]} 36... c3 {[%clk 0:00:13.4]} 37. Rc1 {[%clk
0:00:07.5]} 37... Rd2+ {[%clk 0:00:13.3]} 38. Kf1 {[%clk 0:00:05.9]} 38... Nc4
{[%clk 0:00:02.9]} 39. Rxc3 {[%clk 0:00:05.7]} 39... Rd4 {[%clk 0:00:02.5]} 40.
Kf2 {[%clk 0:00:03.6]} 40... Kf7 {[%clk 0:00:02.1]} 41. Bd3 {[%clk 0:00:03.9]}
41... Ne5 {[%clk 0:00:02.2]} 42. Be2 {[%clk 0:00:03.8]} 42... a5 {[%clk
0:00:02.3]} 43. Rc7+ {[%clk 0:00:04]} 43... Kg6 {[%clk 0:00:02.5]} 44. Ra7
{[%clk 0:00:02.7]} 44... Ra4 {[%clk 0:00:03]} 45. h4 {[%clk 0:00:02.7]} 45...
Rxa3 {[%clk 0:00:03.4]} 46. h5+ {[%clk 0:00:03.3]} 46... Kh6 {[%clk 0:00:04.1]}
47. Ra6 {[%clk 0:00:03.9]} 47... Kg5 {[%clk 0:00:04.5]} 48. Ra7 {[%clk
0:00:04.1]} 48... h6 {[%clk 0:00:04.8]} 49. Rg7+ {[%clk 0:00:04.3]} 49... Kf5
{[%clk 0:00:05.5]} 50. Rh7 {[%clk 0:00:04.9]} 50... Ra2 {[%clk 0:00:05]} 51.
Rxh6 {[%clk 0:00:04.6]} 51... Ng4+ {[%clk 0:00:05.5]} 52. Kf3 {[%clk 0:00:03.3]}
52... Nxh6 {[%clk 0:00:06.4]} 53. Bd3+ {[%clk 0:00:03.2]} 53... Kg5 {[%clk
0:00:06.6]} 54. Bc4 {[%clk 0:00:02.5]} 54... Ra3+ {[%clk 0:00:07.5]} 55. Ke4
{[%clk 0:00:02.9]} 55... Rxg3 {[%clk 0:00:07.4]} 56. Bd5 {[%clk 0:00:01.8]}
56... Rxg2 {[%clk 0:00:07.6]} 57. Kf3 {[%clk 0:00:02.7]} 57... Rg4 {[%clk
0:00:08.1]} 58. Bb3 {[%clk 0:00:02.1]} 58... Rf4+ {[%clk 0:00:08.3]} 59. Ke3
{[%clk 0:00:02.1]} 59... Nf5+ {[%clk 0:00:08.9]} 60. Ke2 {[%clk 0:00:02]} 60...
Kxh5 {[%clk 0:00:09.1]} 61. Bd1 {[%clk 0:00:02.1]} 61... Kg5 {[%clk 0:00:09.2]}
62. Kd3 {[%clk 0:00:02.4]} 62... a4 {[%clk 0:00:09.9]} 63. Kc3 {[%clk
0:00:02.2]} 63... a3 {[%clk 0:00:09.9]} 64. Kb3 {[%clk 0:00:01.4]} 64... Rd4
{[%clk 0:00:10.1]} 65. Ka2 {[%clk 0:00:02.3]} 65... Rxd1 {[%clk 0:00:10.3]} 0-1